Cogmind - Beta 15 @@@ ROGUE MODE // 2025.10.06 @ 05:40:37 Player: shapeshifter Result: Destroyed by S-10 Pest with Light Assault Rifle Performance ------------- Evolutions (0) 0 Regions Visited (2) 400 Robots Destroyed (17) 85 Value Destroyed (418) 418 Prototype IDs (0) 0 Alien Tech Used (0) 0 Bonus (0) 0 TOTAL SCORE: 903 Bonus ------- None Cogmind --------- Core Integrity 0/250 Matter 96/300 Energy 125/125 System Corruption 0% Temperature Cool (0) Movement Rolling (100) Location -10/Mines Parts ------- > --- POWER (1) -------- Light Ion Engine > --- PROPULSION (2) --- Compact Wheel Compact Wheel > --- UTILITY (2) ------ Medium Storage Unit > --- WEAPON (2) ------- (None) > --- INVENTORY (10) --- Improved Heat Sink High-capacity Storage Unit ECM Suite Peak State ------------ > --- POWER ------------ Ion Engine > --- PROPULSION ------- Light Treads Light Treads > --- UTILITY ---------- Small Storage Unit Seismic Detector > --- WEAPON ----------- Light Assault Rifle Light Assault Rifle > --- INVENTORY -------- Light Ion Engine Compact Wheel Compact Wheel Assault Rifle [Rating: 7] Favorites ----------- Power Ion Engine Engine Ion Engine Propulsion Light Treads Treads Light Treads Wheel Compact Wheel Utility Seismic Detector Device Seismic Detector Storage Medium Storage Unit Weapon Light Assault Rifle Ballistic Gun Light Assault Rifle Launcher Grenade Launcher Build | -11 -10 -10 ------- Run | Yrd Mat Min Slots Evolved . | . . . Power . | . . . Propulsion . | . . . Utility . | . . . Weapon . | . . . Parts Attached 14 | 7 5 2 Power 2 | 1 1 . Engine 2 | 1 1 . Core . | . . . Reactor . | . . . Propulsion 5 | 2 1 2 Treads 3 | 2 1 . Leg . | . . . Wheel 2 | . . 2 Hover . | . . . Flight . | . . . Utility 3 | 2 1 . Device 1 | 1 . . Storage 2 | 1 1 . Processor . | . . . Hackware . | . . . Protection . | . . . Artifact . | . . . Weapon 4 | 2 2 . Energy Gun . | . . . Energy Cannon . | . . . Ballistic Gun 3 | 2 1 . Ballistic Cannon . | . . . Launcher 1 | . 1 . Special Weapon . | . . . Impact Weapon . | . . . Slashing Weapon . | . . . Piercing Weapon . | . . . Special Melee Weapon . | . . . Unidentified Prototypes . | . . . Parts Lost 6 | . 1 5 Power 1 | . 1 . Propulsion 2 | . . 2 Utility 1 | . . 1 Weapon 2 | . . 2 Highest Loss Streak 5 | . 1 5 To Critical Strikes . | . . . Average Backups 4 | 4 4 4 Power . | 1 . . Propulsion 2 | 2 2 1 Utility . | . . 2 Weapon . | 1 . . Tool/Special . | . . . Unused Backups 4 | 1 . 3 Power . | . . . Propulsion 1 | 1 . . Utility 3 | . . 3 Weapon . | . . . Tool/Special . | . . . Average Slot Usage (%) 96 | . 98 88 Engine 13 | . 13 14 Treads 27 | . 28 22 Device 13 | . 14 11 Storage 14 | . 14 14 Ballistic Gun 23 | . 24 22 Launcher 2 | . 2 . Peak Build Rating 7 | 7 7 7 Average Rating 6 | 4 6 6 On Entrance 4 | . 7 7 Naked Turns . | . . . Heaviest Build 19 | 13 19 17 Greatest Support 40 | 40 40 40 Greatest Overweight (x) 1 | 1 . . Average Overweight (x) . | . . . Largest Inventory Capacity 10 | 8 10 10 Average Capacity 9 | 7 9 10 Most Carried 8 | 8 6 5 Average Carried 4 | 4 4 4 Final Capacity 10 | 8 10 10 Final Carried 4 | 4 4 3 Class Distribution -------------------- 100% | Mutant Dominant Class ---------------- Mutant | -10/Materials Mutant | -10/Mines Resources | -11 -10 -10 ----------- Run | Yrd Mat Min Matter Collected 285 | 167 26 92 Remotely . | . . . Salvage Created 331 | 32 207 92 Parts 27 | 5 16 6 Haulers Intercepted . | . . . Recyclers Shooed 1 | 1 . . Parts Field Recycled . | . . . Retrieved Matter . | . . . Parts Self-Destructed . | . . . Prevented . | . . . Kills | -11 -10 -10 ------- Run | Yrd Mat Min Combat Hostiles Destroyed 12 | . 9 3 Melee 1 | . . 1 Guns 4 | . 2 2 AOE 7 | . 7 . Classes Destroyed 5 | 1 4 . Worker 1 | . 1 . Tunneler 2 | 2 . . Watcher 2 | . 2 . Swarmer 4 | . 3 1 Grunt 8 | . 6 2 Best Kill Streak 7 | 1 7 2 Combat Bots Only 3 | . 3 2 Max Kills in Single Turn 4 | 1 4 1 Gunslinging . | . . . Exploded 3 | . 3 . Melee 1 | . . 1 Uniques/NPCs Destroyed . | . . . Combat | -11 -10 -10 -------- Run | Yrd Mat Min Hostile Shots Fired 104 | . 63 41 Missed 22 | . 18 4 Hits 82 | . 45 37 Projectile 82 | . 45 37 Critical Strikes 2 | . . 2 Damage Taken 998 | . 605 393 Core 252 | . 137 115 Absorbed by Shields . | . . . Core Remaining (%) 100 | 100 . . Volleys Fired 45 | 8 27 10 Largest 2 | 2 2 2 Hottest 40 | 40 40 40 Shots Fired 79 | 16 44 19 Gun 69 | 16 34 19 Cannon . | . . . Launcher 10 | . 10 . Special . | . . . Kinetic 69 | 16 34 19 Thermal . | . . . Explosive 10 | . 10 . Electromagnetic . | . . . Robot Hit Streak 8 | 4 7 8 Robot Miss Streak 4 | 4 4 2 Penetration Max . | . . . Secondary Targets . | . . . Shots Hit Robots 47 | 9 25 13 Core Hits 26 | 5 16 5 Critical Kills 1 | . 1 . Critical Parts Destroyed . | . . . Critical Strikes 1 | . 1 . Destroy 1 | . 1 . Melee Attacks . | . . . Impact . | . . . Slashing . | . . . Piercing . | . . . Sneak Attacks . | . . . Combat Hostiles . | . . . Follow-up Attacks . | . . . Damage Inflicted 1016 | 90 781 145 Guns 448 | 90 228 130 Cannons . | . . . Explosions 541 | . 541 . Melee . | . . . Ramming 27 | . 12 15 Kinetic 448 | 90 228 130 Thermal . | . . . Explosive 541 | . 541 . Electromagnetic . | . . . Impact . | . . . Slashing . | . . . Piercing . | . . . Highest Corruption . | . . . Average Corruption . | . . . Corruption Purged . | . . . Corruption Blocked . | . . . Overload Shots . | . . . Overflow Damage 33 | . 33 . Projectiles . | . . . Explosions 33 | . 33 . Melee . | . . . Knockbacks . | . . . Impact . | . . . Kinetic . | . . . Secondary . | . . . Self-Inflicted Damage 50 | . 46 4 Shots 2 | . 2 . Rammed 13 | . 5 8 Targets Rammed 14 | . 5 9 Kicked . | . . . Crushed 1 | . . 1 Highest Temperature 36 | . 21 36 Average Temperature 13 | . 8 20 Received Heat Transfer 417 | . 282 135 Siege Activations . | . . . Martial Activations . | . . . Shielding Activations . | . . . Robots Disrupted . | . . . Combat Hostiles . | . . . Robots Corrupted . | . . . Combat Hostiles . | . . . Parts Fried . | . . . Impact Corruptions . | . . . Robots Melted . | . . . Combat Hostiles . | . . . Parts Melted . | . . . Heat Transferred . | . . . Parts Sabotaged . | . . . Parts Stolen . | . . . Parts Stripped . | . . . Power Chain Reactions . | . . . Alert | -11 -10 -10 ------- Run | Yrd Mat Min Maximum Alert Level 1 | . 1 . Low Security (%) 77 | 100 68 100 Level 1 22 | . 31 . Level 2 . | . . . Level 3 . | . . . Level 4 . | . . . Level 5 . | . . . High Security . | . . . Max Security . | . . . Peak Influence 265 | 5 265 85 Initial 45 | . . 45 Average 115 | . 152 64 Influence Increases 462 | 10 372 80 Destroy 0b10 Robot/C 240 | . 180 60 Destroy 0b10 Robot/NC 25 | 10 15 . Destroy Leader 64 | . 44 20 Select Force Hacks 30 | . 30 . Disable Machine 30 | . 30 . Destroy Structure 73 | . 73 . Influence Decreases 427 | 10 254 163 Entered New Map 73 | . . 73 Time Decay 294 | 10 244 40 Lost Part 60 | . 10 50 Squads Dispatched 2 | . 2 . Investigation 1 | . 1 . Extermination . | . . . Reinforcement 1 | . 1 . Assault . | . . . Garrison . | . . . Intercept . | . . . Searches Triggered . | . . . Construction Impeded . | . . . Haulers Reinforced . | . . . Active Scanning Responses . | . . . Cargo Convoy Interrupts . | . . . Stealth | -11 -10 -10 --------- Run | Yrd Mat Min Distress Signals . | . . . Communications Jammed . | . . . Distress Signals . | . . . Times Spotted 19 | . 14 5 Peak Tracking Total 3 | . 3 2 Tactical Retreats . | . . . Traps | -11 -10 -10 ------- Run | Yrd Mat Min Traps Triggered . | . . . Indirectly . | . . . Trap Hack Attempts . | . . . Triggered . | . . . Disarmed . | . . . Reprogrammed . | . . . Reused . | . . . Traps Extracted . | . . . Installed . | . . . Triggered . | . . . Machines | -11 -10 -10 ---------- Run | Yrd Mat Min Machines Disabled 2 | . 2 . Max in Single Turn 2 | . 2 . Machines Repaired . | . . . Machines Dismantled . | . . . Machines Sabotaged . | . . . Overloaded Fab Kills . | . . . Hacking | -11 -10 -10 --------- Run | Yrd Mat Min Machines Accessed 1 | . 1 . Terminals . | . . . Fabricators . | . . . Repair Stations . | . . . Recycling Units 1 | . 1 . Scanalyzers . | . . . Garrison Access . | . . . Total Hacks 4 | . 4 . Successful 3 | . 3 . Failed 1 | . 1 . Catastrophic 1 | . 1 . Database Lockouts . | . . . Manual 1 | . 1 . Terminals . | . . . Fabricators . | . . . Repair Stations . | . . . Recycling Units 4 | . 4 . Scanalyzers . | . . . Garrison Access . | . . . Terminal Hacks . | . . . Fabricator Hacks . | . . . Repair Station Hacks . | . . . Recycling Unit Hacks 2 | . 2 . Retrieve Components 2 | . 2 . Scanalyzer . | . . . Garrison Access Hacks . | . . . Unauthorized Hacks 1 | . 1 . Terminals . | . . . Fabricators . | . . . Repair Stations . | . . . Recycling Units 1 | . 1 . Tunnel 1 | . 1 . Scanalyzers . | . . . Garrison Access . | . . . Data Cores Recovered . | . . . Used . | . . . Hacking Detections 1 | . 1 . Full Trace Events . | . . . Feedback Events . | . . . Feedback Blocked . | . . . Robot Schematics Acquired . | . . . Robots Built . | . . . Authchips . | . . . Time . | . . . Total Robot Build Rating . | . . . Part Schematics Acquired . | . . . Parts Built . | . . . Authchips . | . . . Time . | . . . Total Part Build Rating . | . . . Parts Repaired . | . . . Time . | . . . Parts Recycled . | . . . Recycled Matter . | . . . Retrieved Matter . | . . . Retrieved Components . | . . . Parts Scanalyzed . | . . . Part Schematics Acquired . | . . . Parts Damaged . | . . . Bothacking | -11 -10 -10 ------------ Run | Yrd Mat Min Used RIF Installer . | . . . Robots Hacked . | . . . Non-combat . | . . . Combat . | . . . Robot Hacks Applied . | . . . Relay Couplers Released . | . . . Fabnet Peak Effective % . | . . . Robots Rewired . | . . . Allies Hacked . | . . . Hacks Repelled . | . . . Allies | -11 -10 -10 -------- Run | Yrd Mat Min Total Allies . | . . . Largest Group . | . . . Highest-Rated Group . | . . . Highest-Rated Ally . | . . . Total Orders . | . . . Ally Attacks . | . . . Total Damage . | . . . Kills . | . . . Allies Corrupted . | . . . Allies Melted . | . . . Intel | -11 -10 -10 ------- Run | Yrd Mat Min Active Infowar (turns) 625 | 11 543 71 Seismic 625 | 11 543 71 Robot Analysis Total . | . . . Derelict Logs Recovered 1 | . . 1 Drone Launches . | . . . Drone Recoveries . | . . . Exploration | -11 -10 -10 ------------- Run | Yrd Mat Min Turns Passed 771 | 135 543 93 Spaces Moved 389 | 73 284 32 Core 20 | 20 . . Treads 367 | 53 284 30 Legs . | . . . Wheels 2 | . . 2 Hover . | . . . Flight . | . . . Fastest Speed 50 | 50 160 100 Average Speed 154 | 131 160 156 Slowest Speed 160 | 160 160 160 Overloaded Moves . | . . . Propulsion Burnouts . | . . . Robots Hopped . | . . . Potential Cave-ins . | . . . Cave-ins Triggered . | . . . Exploration Rate (%) 21 | 4 49 11 Regions Visited 2 Branch Regions 1 Pre-discovered Areas 2 | . 1 1 Known Exits Taken . | . . . Unknown Exits Taken 2 | 1 1 . Scrap Searched . | . . . Spaces Dug . | . . . Terrain Destroyed 83 | . 83 . Melee . | . . . Projectile . | . . . AOE 83 | . 83 . Terrain Rammed . | . . . Walls Destroyed . | . . . Machines Disabled . | . . . Actions | -11 -10 -10 --------- Run | Yrd Mat Min Total 483 | 99 330 54 Wait . | . . . Move 387 | 72 283 32 Hop . | . . . Pick Up 17 | 11 5 1 Fast Attach 1 | 1 . . Attach 11 | 6 3 2 Detach . | . . . Swap 3 | . 3 . Drop 5 | 1 4 . Fire 45 | 8 27 10 Melee . | . . . Ram 6 | . . 6 Kick . | . . . Crush 8 | . 5 3 Escape Stasis . | . . . Rewire . | . . . Trap . | . . . Miscellaneous . | . . . Route ------- -11/Scrapyard -10/Materials (discovered 2 exits: [*Mat] / [*Min]) -10/Mines History --------- Turn | Location | Event 11 | -11/Scrapyard | Discovered new exit (range 16) 136 | -11/Scrapyard | Entered Materials 311 | -10/Materials | Discovered new exit (range 5) 315 | -10/Materials | Build established: Mutant 625 | -10/Materials | Core integrity fell below 50% 649 | -10/Materials | Discovered new exit (range 8) 679 | -10/Materials | Entered Mines 749 | -10/Mines | Learned location of Mines (-8) 764 | -10/Mines | Core integrity fell below 20% 768 | -10/Mines | Met a Derelict bent on vengeance 772 | -10/Mines | Destroyed by S-10 Pest with Light Assault Rifle Last Messages --------------- 00721_ R-06 Scavenger collects Sml. Laser. 00749_ Acquired derelict log, extracted data. World map updated: -8/Mines. 00750_ Seismic Detector destroyed. 00751_ S-10 Pest destroyed. 00752_ Lgt. Treads destroyed. 00755_ K-01 Serf collects debris. 00755_ Assault Rifle destroyed. 00757_ Lgt. Assault Rifle destroyed. 00759_ Slammed into S-10 Pest. 00759_ Lgt. Treads destroyed. 00760_ Slammed into S-10 Pest. 00762_ R-06 Scavenger collects Lgt. Ion Engine. 00767_ Slammed into S-10 Pest. 00767_ Destabilizing: Core damaged (-5). 00768_ Slammed into S-10 Pest. 00769_ R-06 Scavenger collects Lgt. Assault Rifle. 00770_ Slammed into S-10 Pest. 00771_ Acquired 16 matter. 00771_ Slammed into S-10 Pest. Map ----- +----------------------------------------------------+ | ?????????????????????????????????????????????????? | | ?????????????????????????????????????????????????? | | ?????????????????????????????????????????????????? | | ?????????????????????????????????????????????????? | | ?????????????????????????????????????????????????? | | ?????????????????????????????????????????????????? | | ?????????????????????????????????????????????????? | | ?????????????????????????????????????????????????? | | ?????????????###?????????????????????????????????? | | ?????????????# ?????????????????????????????????? | | ?????????????# #?????????????????????????????????? | | ?????????????# #?????????????????????????????????? | | ?????????????# #?????????????????????????????????? | | ???????????### #?????????????????????????????????? | | ???????????? #?????????????????????????????????? | | ?????????????# #?????????????????????????????????? | | ?????????????# #?????###?????????????????????????? | | ?????????????# #????# ##????????????????????????? | | ?????????????# ##### #????????????????????????? | | ??########???# #????????????????????????? | | ??# #???# #?????????????????????????? | | ??# ##### ## ##?????????????????????????? | | ??# = ## #?????????? #??????????????? | | ??# """ [####### ##???????? #???????????????? | | ??# """ #???## ######### #????????????????? | | ??# """ [#???# r @s #????????????????? | | ??# #???# u s r ##????????????????? | | ??########???# ######## ##?????????????????? | | ?????????????## ##???????# ##??????????????????? | | ??????????????## ?????????? ##???????????????????? | | ???????????????# ???????????#????????????????????? | | ???????????????# ????????????????????????????????? | | ???????????????# ????????????????????????????????? | | ???????????????# ????????????????????????????????? | | ???????????????# ????????????????????????????????? | | ???????????????? ????????????????????????????????? | | ?????????????????????????????????????????????????? | | ?????????????????????????????????????????????????? | | ?????????????????????????????????????????????????? | | ?????????????????????????????????????????????????? | | ?????????????????????????????????????????????????? | | ?????????????????????????????????????????????????? | | ?????????????????????????????????????????????????? | | ?????????????????????????????????????????????????? | | ?????????????????????????????????????????????????? | | ?????????????????????????????????????????????????? | | ?????????????????????????????????????????????????? | | ?????????????????????????????????????????????????? | | ?????????????????????????????????????????????????? | | ?????????????????????????????????????????????????? | +----------------------------------------------------+ Best States ------------- Heat Dissipation 25 Energy Generation 10 Energy Capacity 250 Matter Stores 181 Matter Capacity 300 Sight Range 16 Terrain Scan Density 10 Evasion (%) 50 Recoil Reduction 2 Item Schematics ----------------- None Robot Schematics ------------------ None Fabricated ------------ Nothing Repaired ---------- Nothing Alien Tech Used ----------------- None Achievements -------------- None Challenges ------------ None Game ------ Seed FortressRegenerativeArmor Manual? 0 Play Time 00:05:04 Cumulative 358.0 hours Start 2025.10.06 @ 03:58:28 End 2025.10.06 @ 05:40:37 Sessions 4 Manual Loads 0 Difficulty Rogue Special Mode None Game No. 468 Rogue 468 Adventurer 0 Explorer 0 Win Type - Total 11 Types 6/0/1/2/1/0/1/0/0/0 Lore% 87 Gallery% 83 Achievement% 70 Wizard Run 0 Options --------- Layout 0 ASCII 0 Keyboard 0 Movement Mouse Keybinds 0 Fullscreen 1 Font 18/X11 Map View 76x50 Zoom Use 0% Tactical HUD 1 Map Filters NONE Filters NONE Steam 1 RUN: 4b303dc9-3d73-4e18-b756-0496dd412616